bitfinex-derivatives/quotes_BTCF0:USTF0_20250411
["timestamp","ask_amount","ask_price","bid_price","bid_amount"]
[1744351800874,9.842e-05,81187.0,81185.0,0.1232592]
[1744351801069,0.00922238,81193.0,81185.0,0.1878592]
[1744351801270,0.00833704,81190.0,81189.0,0.1232531]
[1744351801484,0.0303,81209.0,81193.0,0.0616229]
[1744351801673,0.44449134,81214.0,81199.0,0.4840379]
[1744351801873,0.22329041,81200.0,81199.0,0.3608]
[1744351802078,0.2232364,81200.0,81199.0,0.3608]
[1744351802272,0.123244,81195.0,81194.0,0.0646]
[1744351805390,0.061621,81197.0,81194.0,0.0646]
[1744351805589,0.0317,81196.0,81194.0,0.0646]
[1744351807794,0.123244,81195.0,81194.0,0.0646]
[1744351808085,0.1232622,81183.0,81168.0,0.0616421]
[1744351808287,0.1232637,81182.0,81177.0,0.3608]
[1744351808499,0.1871637,81182.0,81177.0,0.3608]
[1744351809184,0.1871637,81182.0,81176.0,0.0642]
[1744351810391,0.5479637,81182.0,81176.0,0.0642]
[1744351810589,0.4247,81182.0,81167.0,0.3608]
[1744351810783,0.1232835,81169.0,81168.0,0.0625]
[1744351811288,0.1232835,81169.0,81168.0,0.0304]
[1744351811492,0.1232895,81165.0,81164.0,0.0312]
[1744351811891,0.1871895,81165.0,81164.0,0.0631]
[1744351813996,0.1553895,81165.0,81164.0,0.0631]
[1744351814493,0.1871895,81165.0,81164.0,0.0631]
[1744351818487,0.2185895,81165.0,81164.0,0.0631]
[1744351818688,0.1232911,81164.0,81163.0,0.00049283]
[1744351818887,0.1546911,81164.0,81163.0,0.00049283]
[1744351819087,0.1860911,81164.0,81163.0,0.00049283]
[1744351819284,0.1232911,81164.0,81163.0,0.00049283]
[1744351820095,0.1233311,81164.0,81163.0,0.00049283]
[1744351820993,0.1233311,81164.0,81163.0,0.36129283]
[1744351821589,0.1232911,81164.0,81163.0,0.36129283]
[1744351821789,0.1233311,81164.0,81163.0,0.36129283]
[1744351826609,0.061644,81166.0,81163.0,0.37882738]
[1744351826909,0.1232895,81165.0,81164.0,0.08203455]
[1744351827103,0.1232895,81165.0,81164.0,0.0645]
[1744351828716,0.1232895,81165.0,81164.0,0.0817285]
[1744351828899,0.03068484,81173.0,81164.0,0.0817285]
[1744351828900,0.00018484,81173.0,81164.0,0.08172457]
[1744351829100,0.1232813,81171.0,81167.0,0.1232862]
[1744351829301,0.1232804,81171.0,81170.0,0.3608]
[1744351830310,0.00018484,81173.0,81170.0,0.3608]
[1744351830498,0.00018484,81173.0,81172.0,0.1232789]
[1744351830810,0.00022484,81173.0,81172.0,0.14088048]
[1744351831111,0.00022484,81173.0,81172.0,0.20558048]
[1744351833104,0.00022484,81173.0,81172.0,0.2058541]
[1744351833305,0.00022484,81173.0,81172.0,0.1879789]
[1744351833508,0.00022484,81173.0,81172.0,0.20585797]
[1744351834414,0.00022484,81173.0,81172.0,0.20585753]
[1744351834611,0.00022484,81173.0,81172.0,0.1879789]
[1744351834811,0.00022484,81173.0,81172.0,0.20585753]
[1744351835303,7.291e-05,81190.0,81183.0,0.1232622]
[1744351835504,0.1232518,81190.0,81185.0,0.123259]
[1744351835814,0.1232518,81190.0,81186.0,0.07957863]
[1744351836006,0.1232518,81190.0,81187.0,0.01787863]
[1744351836206,0.1232518,81190.0,81188.0,0.01787863]
[1744351836406,0.1232518,81190.0,81189.0,0.08287863]
[1744351837307,0.1232518,81190.0,81189.0,0.0826419]
[1744351837512,0.1232518,81190.0,81189.0,0.065]
[1744351838411,0.061619,81199.0,81189.0,0.065]
[1744351838615,0.0332,81195.0,81189.0,0.065]
[1744351838813,0.03324,81195.0,81193.0,0.1232457]
[1744351839010,0.0332,81195.0,81194.0,0.0639]
[1744351839205,0.03324,81195.0,81194.0,0.0639]
[1744351839912,0.03324,81195.0,81194.0,0.1871455]
[1744351841317,0.03324,81195.0,81194.0,0.1963353]
[1744351842709,4e-05,81195.0,81194.0,0.1963353]
[1744351843121,0.1,81200.0,81199.0,0.1232379]
[1744351843916,0.1,81200.0,81199.0,0.1867379]
[1744351844215,0.1,81200.0,81199.0,0.5475379]
[1744351844717,0.10004,81200.0,81199.0,0.5475379]
[1744351845117,0.1,81200.0,81199.0,0.5475379]
[1744351845319,0.10004,81200.0,81199.0,0.5475379]
[1744351849017,0.1,81200.0,81199.0,0.56560236]
[1744351849415,0.10004,81200.0,81199.0,0.56560236]
[1744351849617,0.10004,81200.0,81199.0,0.64936236]
[1744351849926,0.00045401,81210.0,81209.0,0.1232227]
[1744351850221,0.0004,81210.0,81209.0,0.1232227]
[1744351850419,0.0302,81227.0,81222.0,0.1232029]
[1744351850721,0.1232,81224.0,81223.0,0.1881]
[1744351851319,0.12324,81224.0,81223.0,0.1881]
[1744351851518,4e-05,81224.0,81223.0,0.1881]
[1744351851919,0.03104,81224.0,81223.0,0.1881]
[1744351852625,0.03104,81224.0,81223.0,0.1841]
[1744351854719,0.03104,81224.0,81223.0,0.0331]
[1744351855223,0.0616047,81218.0,81198.0,0.3608]
[1744351855417,0.1857115,81217.0,81209.0,0.1232226]
[1744351855622,0.1857115,81217.0,81210.0,0.01822061]
[1744351855826,0.1547122,81216.0,81210.0,0.0332]
[1744351856126,0.1232155,81214.0,81211.0,0.0325]
[1744351856327,0.1232155,81214.0,81212.0,0.01838923]
[1744351856532,0.0311,81213.0,81212.0,0.0332]
[1744351857226,0.1232243,81208.0,81207.0,0.3608]
[1744351857727,0.1232334,81202.0,81198.0,0.3608]
[1744351857924,0.0315,81207.0,81198.0,0.3608]
[1744351858125,0.12328041,81207.0,81206.0,0.3608]
[1744351858324,5.401e-05,81207.0,81206.0,0.50226908]
[1744351858528,0.12327981,81207.0,81206.0,0.50226908]
[1744351858924,0.12327981,81207.0,81206.0,0.37904178]
[1744351859423,5.401e-05,81207.0,81206.0,0.53265915]
[1744351859625,5.401e-05,81207.0,81206.0,0.40943185]
[1744351859827,0.12327981,81207.0,81206.0,0.40943185]
[1744351860528,0.12327981,81207.0,81206.0,0.01803185]
[1744351860731,0.1232334,81202.0,81201.0,0.00018472]
[1744351861037,0.1232516,81190.0,81189.0,0.21874035]
[1744351861939,0.1232516,81190.0,81189.0,0.23672679]
[1744351862126,0.1232916,81190.0,81189.0,0.21874035]
[1744351862327,0.1232916,81190.0,81189.0,0.2367295]
[1744351862723,0.1232916,81190.0,81189.0,0.21874035]
[1744351862931,0.1232916,81190.0,81165.0,0.3608]
[1744351862932,0.0616297,81185.0,81165.0,0.3608]
[1744351863131,0.4840637,81182.0,81166.0,0.031]
[1744351863326,0.5678237,81182.0,81166.0,0.031]
[1744351864327,0.5678237,81182.0,81172.0,0.033]
[1744351864541,0.0309,81184.0,81183.0,0.1232622]
[1744351864727,0.1232582,81186.0,81185.0,0.1232591]
[1744351864938,0.1232622,81184.0,81183.0,0.123262]
[1744351865236,0.0616276,81188.0,81182.0,0.033]
[1744351865237,0.1232622,81183.0,81182.0,0.033]
[1744351866137,0.1232566,81187.0,81186.0,0.1232569]
[1744351866337,0.1232622,81185.0,81184.0,0.1232605]
[1744351866728,0.1232622,81183.0,81182.0,0.033]
[1744351867240,0.08504,81189.0,81188.0,0.1232546]
[1744351867429,0.123257,81187.0,81186.0,0.123257]
[1744351867631,0.1232464,81194.0,81193.0,0.1232464]
[1744351867830,0.1232456,81195.0,81194.0,0.123245]
[1744351868136,0.47486838,81198.0,81193.0,0.0314]
[1744351868137,0.1232455,81194.0,81193.0,0.0314]
[1744351868337,0.00018433,81198.0,81197.0,0.123241]
[1744351868635,0.00018433,81198.0,81197.0,0.1406151]
[1744351868941,0.00018433,81198.0,81197.0,0.123241]
[1744351869532,0.00022433,81198.0,81197.0,0.123241]
[1744351869733,0.00018433,81198.0,81197.0,0.14029721]
[1744351869937,0.00022433,81198.0,81197.0,0.14029721]
[1744351870335,0.12346373,81198.0,81197.0,0.01705621]
[1744351870743,0.1232455,81194.0,81193.0,0.3922]
[1744351872138,0.1232455,81194.0,81193.0,0.515447]
[1744351872739,0.1229234,81194.0,81193.0,0.515447]
[1744351872936,0.00022433,81198.0,81197.0,0.123241]
[1744351873142,0.00022433,81198.0,81197.0,0.14030163]
[1744351873342,0.00022433,81198.0,81197.0,0.14029764]
[1744351873640,0.00018433,81198.0,81197.0,0.14029789]
[1744351873843,0.00022433,81198.0,81197.0,0.14029789]
[1744351874043,0.00018433,81198.0,81197.0,0.14029789]
[1744351874243,0.00022433,81198.0,81197.0,0.14029789]
[1744351875848,0.00022433,81198.0,81197.0,0.17349789]
[1744351878348,0.12346373,81198.0,81197.0,0.17349789]
[1744351878547,0.12346373,81198.0,81197.0,0.01705689]
[1744351878844,0.1232455,81194.0,81193.0,0.484047]
[1744351879049,0.1232455,81194.0,81193.0,0.50236872]
[1744351879351,0.1232455,81194.0,81193.0,0.50236461]
[1744351879648,0.1232455,81194.0,81193.0,0.59678457]
[1744351879849,0.1232455,81194.0,81193.0,0.484047]
[1744351880149,0.1232455,81194.0,81193.0,0.3608]
[1744351880345,0.1232455,81194.0,81193.0,0.516847]
[1744351880545,0.1232455,81194.0,81193.0,0.3608]
[1744351881147,0.1232577,81186.0,81185.0,0.29066103]
[1744351881848,0.1854577,81186.0,81185.0,0.29066103]
[1744351882443,0.1232622,81183.0,81182.0,0.1557637]
[1744351882650,0.0308,81186.0,81185.0,0.1232592]
[1744351883052,0.3608,81187.0,81186.0,0.1232577]
[1744351883851,0.1232622,81183.0,81182.0,0.0325]
[1744351885046,0.1232555,81190.0,81189.0,0.1232516]
[1744351885247,0.1232555,81190.0,81189.0,0.14135459]
[1744351885844,0.1232555,81190.0,81189.0,0.01810299]
[1744351886048,0.1232561,81187.0,81186.0,0.0302]
[1744351886245,0.4840561,81187.0,81186.0,0.01808355]
[1744351886452,0.1232637,81182.0,81181.0,0.00018472]
[1744351887054,0.1233037,81182.0,81181.0,0.14154132]
[1744351887353,0.1233037,81182.0,81181.0,0.01827612]
[1744351887854,0.1233037,81182.0,81181.0,0.01835486]
[1744351891058,0.1233037,81182.0,81181.0,0.14162006]
[1744351891457,0.1233037,81182.0,81181.0,0.01835486]
[1744351892160,0.1233037,81182.0,81181.0,0.00018472]
[1744351893159,0.1233037,81182.0,81181.0,0.01900538]
[1744351895861,0.1233037,81182.0,81181.0,0.05150538]
[1744351896549,0.1233037,81182.0,81181.0,0.00018472]
[1744351896963,0.1232911,81164.0,81161.0,0.123295]
[1744351897156,0.1232911,81164.0,81163.0,0.12378543]
[1744351897658,0.1232911,81164.0,81163.0,0.00049283]
[1744351898254,0.1232911,81164.0,81163.0,0.03359283]
[1744351898255,0.1547911,81164.0,81163.0,0.03359283]
[1744351898656,0.1547911,81164.0,81163.0,0.18908543]
[1744351899255,0.3608,81165.0,81164.0,0.1232911]
[1744351899461,0.1232821,81170.0,81169.0,0.0616411]
[1744351899761,0.1233221,81170.0,81169.0,0.1263411]
[1744351899964,0.1533221,81170.0,81169.0,0.1263411]
[1744351900458,0.5141221,81170.0,81169.0,0.1263411]
[1744351900761,0.1533221,81170.0,81169.0,0.1263411]
[1744351900960,0.1533221,81170.0,81169.0,0.0647]
[1744351901353,0.5141221,81170.0,81169.0,0.0647]
[1744351901963,0.1533221,81170.0,81169.0,0.0647]
[1744351902155,0.1532821,81170.0,81169.0,0.0647]
[1744351902860,0.5141221,81170.0,81169.0,0.0647]
[1744351903567,0.4841221,81170.0,81169.0,0.0647]
[1744351903859,4e-05,81170.0,81169.0,0.0647]
[1744351904064,0.123282,81170.0,81169.0,0.2496245]
[1744351904265,0.123322,81170.0,81169.0,0.2496245]
[1744351904470,0.123322,81170.0,81169.0,0.126341]
[1744351906970,0.484122,81170.0,81169.0,0.0647]
[1744351908070,0.123282,81170.0,81169.0,0.4255]
[1744351908273,0.123322,81170.0,81169.0,0.4255]
[1744351908669,0.123322,81170.0,81169.0,0.5487835]
[1744351908870,0.123322,81170.0,81169.0,0.5669941]
[1744351909567,0.123322,81170.0,81169.0,0.4437106]
[1744351909869,0.123322,81170.0,81169.0,0.44372425]
[1744351910274,4e-05,81170.0,81169.0,0.56700775]
[1744351910570,0.123282,81170.0,81169.0,0.56700775]
[1744351910770,0.123322,81170.0,81169.0,0.56700775]
[1744351911364,4e-05,81170.0,81169.0,0.56700775]
[1744351912571,0.123322,81170.0,81169.0,0.56700775]
[1744351912875,0.123322,81170.0,81169.0,0.44372425]
[1744351913069,0.123322,81170.0,81169.0,0.08292425]
[1744351913376,0.123322,81170.0,81169.0,0.20587828]
[1744351913567,4e-05,81170.0,81169.0,0.56667828]
[1744351913871,0.3608,81179.0,81169.0,0.56667828]
[1744351913872,0.1232679,81180.0,81177.0,0.1232713]
[1744351914073,0.1232669,81180.0,81179.0,0.1848987]
[1744351914265,0.1232669,81180.0,81179.0,0.20279348]
[1744351914465,0.1232669,81180.0,81179.0,0.26569348]
[1744351921378,0.0616313,81183.0,81180.0,0.0616327]
[1744351921571,0.0616313,81183.0,81182.0,0.1232637]
[1744351921773,0.0616713,81183.0,81182.0,0.14115848]
[1744351921972,4e-05,81183.0,81182.0,0.20375848]
[1744351922171,0.00018433,81188.0,81187.0,0.1232561]
[1744351922371,0.12343893,81188.0,81187.0,0.14115088]
[1744351923073,0.12343893,81188.0,81187.0,0.20375088]
[1744351923872,0.00018433,81188.0,81187.0,0.56455088]
[1744351924367,0.00022433,81188.0,81187.0,0.56455088]
[1744351924880,0.12347893,81188.0,81187.0,0.56455088]
[1744351925273,0.00022433,81188.0,81187.0,0.56455088]
[1744351926473,0.12347893,81188.0,81187.0,0.56455088]
[1744351926674,0.00022433,81188.0,81187.0,0.56455088]
[1744351927585,0.0616251,81191.0,81188.0,0.1848782]
[1744351927778,0.1232516,81190.0,81189.0,0.14114788]
[1744351928175,0.1556516,81190.0,81189.0,0.14114788]
[1744351930277,0.0616312,81183.0,81179.0,0.1232678]
[1744351930480,0.5787955,81182.0,81181.0,0.0307]
[1744351930685,0.6395955,81182.0,81181.0,0.01743884]
[1744351931378,0.1232668,81180.0,81179.0,0.0615]
[1744351931578,0.1232668,81180.0,81179.0,0.0307]
[1744351933285,0.1232698,81178.0,81177.0,0.1232711]
[1744351933988,0.1553698,81178.0,81177.0,0.1232711]
[1744351934886,0.1553698,81178.0,81177.0,0.13961429]
[1744351936189,0.1554098,81178.0,81177.0,0.13961429]
[1744351939884,4e-05,81178.0,81177.0,0.13961429]
[1744351940081,0.0616287,81187.0,81180.0,0.0616332]
[1744351940290,0.12333161,81186.0,81185.0,0.1232577]
[1744351940490,0.15413161,81186.0,81185.0,0.13960089]
[1744351940689,0.1540587,81186.0,81185.0,0.13960089]
[1744351940987,0.1540987,81186.0,81185.0,0.13960089]
[1744351942696,0.1540987,81186.0,81185.0,0.14026922]
[1744351943082,0.1540987,81186.0,81185.0,0.01701152]
[1744351943281,0.03084,81186.0,81185.0,0.01701614]
[1744351943487,0.1232977,81186.0,81185.0,0.14027534]
[1744351943696,0.2158764,81191.0,81187.0,0.0616279]
[1744351943992,0.031,81194.0,81193.0,0.123247]
[1744351944300,0.0616203,81198.0,81197.0,0.123241]
[1744351944594,0.0616203,81198.0,81197.0,0.50122342]
[1744351944799,0.0616603,81198.0,81197.0,0.50122342]
[1744351944987,0.0926603,81198.0,81197.0,0.37798032]
[1744351945186,0.0926603,81198.0,81197.0,0.01718032]
[1744351945386,0.1236603,81198.0,81197.0,0.01718032]
[1744351945588,0.123244,81195.0,81194.0,0.1232453]
[1744351945792,0.484044,81195.0,81194.0,0.14049502]
[1744351945995,0.123244,81195.0,81194.0,0.14049502]
[1744351946382,0.1848626,81197.0,81196.0,0.1232425]
[1744351946587,0.1848535,81201.0,81197.0,0.0616205]
[1744351946884,5.401e-05,81203.0,81202.0,0.1848499]
[1744351947193,0.1232297,81205.0,81204.0,0.1232288]
[1744351947494,0.18489571,81207.0,81206.0,0.1232273]
[1744351947693,0.18489571,81207.0,81206.0,0.14047702]
[1744351948194,0.1848417,81207.0,81206.0,0.14047702]
[1744351948495,0.1848817,81207.0,81206.0,0.14047702]
[1744351949996,0.1848817,81207.0,81206.0,0.14062856]
[1744351950394,0.1848817,81207.0,81206.0,0.1232273]
[1744351950691,0.1232394,81198.0,81197.0,0.184857]
[1744351950897,0.1232394,81198.0,81197.0,0.20224568]
[1744351951694,0.1232394,81198.0,81197.0,0.07900908]
[1744351952797,0.1232394,81198.0,81197.0,0.0616204]
[1744351952998,0.1232394,81198.0,81197.0,0.07891009]
[1744351953402,0.1232394,81198.0,81197.0,0.08800933]
[1744351955204,0.1232485,81194.0,81193.0,0.1232467]
[1744351955399,0.1232546,81188.0,81187.0,0.00931463]
[1744351956197,0.1232577,81186.0,81185.0,0.00018472]
[1744351956397,0.4840577,81186.0,81185.0,0.00018472]
[1744351957102,0.5474577,81186.0,81185.0,0.00018472]
[1744351957705,0.5474577,81186.0,81185.0,0.03028472]
[1744351957904,0.5474577,81186.0,81185.0,0.06068472]
[1744351962405,0.5474577,81186.0,81185.0,0.18394392]
[1744351962406,0.5160577,81186.0,81185.0,0.18394392]
[1744351962596,0.0616271,81189.0,81188.0,0.1232546]
[1744351962903,0.1848848,81189.0,81188.0,0.1407319]
[1744351963103,0.1849248,81189.0,81188.0,0.1407319]
[1744351963307,0.1849248,81189.0,81188.0,0.14073152]
[1744351964515,0.1849248,81189.0,81188.0,0.14073865]
[1744351964697,0.1849248,81189.0,81188.0,0.14073978]
[1744351965106,0.1849248,81189.0,81188.0,0.01748518]
[1744351965303,0.1232577,81186.0,81185.0,0.24557182]
[1744351965502,0.4840577,81186.0,81185.0,0.26305669]
[1744351965700,0.4840577,81186.0,81185.0,0.07816957]
[1744351965901,0.0616337,81180.0,81154.0,0.0616525]
[1744351966211,0.0616337,81180.0,81166.0,0.0941]
[1744351966212,0.1232865,81167.0,81166.0,0.0941]
[1744351967607,0.1232865,81167.0,81166.0,0.217388]
[1744351968600,0.1233265,81167.0,81166.0,0.217388]
[1744351969007,4e-05,81167.0,81166.0,0.217388]
[1744351969207,0.12346032,81175.0,81174.0,0.1232759]
[1744351970007,0.15596032,81175.0,81174.0,0.1867759]
[1744351973298,0.12346032,81175.0,81174.0,0.1867759]
[1744351973504,0.00018472,81175.0,81174.0,0.1867759]
[1744351974305,0.00022472,81175.0,81174.0,0.1867759]
[1744351975816,7.291e-05,81187.0,81186.0,0.1232577]
[1744351976017,0.1232541,81189.0,81188.0,0.1232546]
[1744351976213,0.1232546,81188.0,81187.0,0.0305]
[1744351976402,0.1232546,81188.0,81187.0,0.04660311]
[1744351976608,0.1232546,81188.0,81187.0,0.16985921]
[1744351977904,0.1232546,81188.0,81187.0,0.18859171]
[1744351979015,0.1562546,81188.0,81187.0,0.18859171]
[1744351979314,0.1232668,81180.0,81172.0,0.1232779]
[1744351979525,0.4840668,81180.0,81178.0,0.1232692]
[1744351979815,0.4840668,81180.0,81179.0,0.03208472]
[1744351980017,0.4840668,81180.0,81179.0,0.15535302]
[1744351980207,0.5170668,81180.0,81179.0,0.15535302]
[1744351980707,0.5171068,81180.0,81179.0,0.15535302]
[1744351982503,0.4841068,81180.0,81179.0,0.15535302]
[1744351982709,4e-05,81180.0,81179.0,0.15535302]
[1744351983112,0.0616289,81186.0,81181.0,0.1848914]
[1744351983113,0.0616323,81182.0,81181.0,0.1848914]
[1744351983417,0.1232652,81181.0,81180.0,0.03]
[1744351983617,0.1545652,81181.0,81180.0,0.1532668]
[1744351983814,0.1545652,81181.0,81180.0,0.03]
[1744351984321,0.1546052,81181.0,81180.0,0.1532668]
[1744351984822,0.1546052,81181.0,81180.0,0.03]
[1744351985419,0.1233052,81181.0,81180.0,0.03]
[1744351985620,0.1232652,81181.0,81180.0,0.03]
[1744351985919,4e-05,81181.0,81180.0,0.1532668]
[1744351986111,0.4840546,81188.0,81187.0,0.1232561]
[1744351986307,0.1232592,81186.0,81185.0,0.1232584]
[1744351986716,0.1559592,81186.0,81185.0,0.1232584]
[1744351987225,0.3608,81203.0,81187.0,0.1232561]
[1744351987520,0.1232395,81198.0,81197.0,0.123241]
[1744351987821,0.53621494,81209.0,81208.0,0.1232243]
[1744351988014,0.53621494,81209.0,81206.0,0.0616131]
[1744351988015,0.0616179,81201.0,81200.0,0.1232363]
[1744351988213,0.0616179,81201.0,81200.0,0.00018472]
[1744351988414,0.06167191,81201.0,81200.0,0.12342112]
[1744351988717,0.0616116,81209.0,81208.0,0.1232243]
[1744351989217,0.0324,81209.0,81208.0,0.1232243]
[1744351989521,0.1236213,81210.0,81209.0,0.1232227]
[1744351989914,0.1236613,81210.0,81209.0,0.1232227]
[1744351990514,0.1232319,81203.0,81202.0,0.0616161]
[1744351990714,0.0616148,81205.0,81204.0,0.1232303]
[1744351991125,0.0616133,81207.0,81206.0,0.0616132]
[1744351991327,0.0616133,81207.0,81206.0,0.08087222]
[1744351991824,0.0616133,81207.0,81206.0,0.03698052]
[1744351992414,0.0307,81209.0,81208.0,0.1232243]
[1744351992620,0.0004,81210.0,81209.0,0.1232227]
[1744351992926,0.0004,81210.0,81209.0,0.17478172]
[1744351993221,0.00044,81210.0,81209.0,0.17478172]
[1744351993420,0.00044,81210.0,81209.0,0.19250322]
[1744351993824,0.00044,81210.0,81209.0,0.20583241]
[1744351994121,0.00044,81210.0,81209.0,0.19250322]
[1744351994326,0.1236612,81210.0,81209.0,0.19250322]
[1744351994533,0.1236612,81210.0,81209.0,0.07870648]
[1744351994822,0.4844612,81210.0,81209.0,0.03697974]
[1744351995026,0.00044,81210.0,81209.0,0.16020244]
[1744351996026,0.0004,81210.0,81209.0,0.16922903]
[1744351996225,0.00044,81210.0,81209.0,0.16922903]
[1744351997027,0.1236612,81210.0,81209.0,0.04600633]
[1744351997324,0.1236612,81210.0,81209.0,0.03697998]
[1744351997927,0.8838412,81210.0,81209.0,0.03697998]
[1744351998121,0.1232349,81201.0,81200.0,0.2195005]
[1744351998323,0.4840349,81201.0,81200.0,0.2195005]
[1744351998923,0.4840349,81201.0,81200.0,0.3427369]
[1744351999119,0.4840349,81201.0,81200.0,0.2195005]
[1744351999325,0.4840749,81201.0,81200.0,0.2195005]
[1744351999833,0.5457749,81201.0,81200.0,0.2195005]
[1744352001134,0.7957749,81201.0,81200.0,0.2195005]
[1744352001429,0.1232622,81183.0,81182.0,0.0616317]
[1744352001627,0.1848924,81185.0,81184.0,0.1232607]
[1744352001933,0.0616302,81185.0,81184.0,0.1232607]
[1744352002130,0.1232668,81180.0,81179.0,0.21931578]
[1744352002433,0.4840668,81180.0,81179.0,0.21931578]
[1744352003127,0.5156668,81180.0,81179.0,0.21931578]
[1744352003831,0.4840668,81180.0,81179.0,0.34258408]
[1744352004032,0.4840668,81180.0,81179.0,0.21931578]
[1744352004228,0.1848967,81184.0,81183.0,0.1848897]
[1744352004635,0.1849367,81184.0,81183.0,0.1848897]
[1744352004835,4e-05,81184.0,81183.0,0.0616305]
[1744352005131,0.1232622,81183.0,81182.0,0.1232637]
[1744352005538,0.1232652,81181.0,81180.0,0.0308]
[1744352005836,0.1232652,81181.0,81180.0,0.1540668]
[1744352006242,4e-05,81184.0,81183.0,0.1232622]
[1744352006536,0.00018472,81188.0,81187.0,0.1232561]
[1744352006728,0.12343932,81188.0,81187.0,0.1232561]
[1744352006932,0.00018472,81188.0,81187.0,0.1858561]
[1744352007238,0.12343932,81188.0,81187.0,0.1858561]
[1744352007440,0.00018472,81188.0,81187.0,0.1858561]
[1744352007931,0.00018472,81188.0,81187.0,0.19941206]
[1744352008438,0.00022472,81188.0,81187.0,0.19941206]
[1744352009337,5.401e-05,81197.0,81196.0,0.1232425]
[1744352009542,0.123241,81197.0,81196.0,0.1848631]
[1744352009737,0.123281,81197.0,81196.0,0.0945206]
[1744352010131,0.123281,81197.0,81196.0,0.11378058]
[1744352010332,4e-05,81197.0,81196.0,0.14549545]
[1744352010636,0.1232265,81207.0,81206.0,0.0616134]
[1744352010938,0.1232265,81207.0,81206.0,0.11258825]
[1744352011140,0.1232265,81207.0,81206.0,0.09886263]
[1744352011443,0.1232665,81207.0,81206.0,0.03724923]
[1744352013138,0.2174665,81207.0,81206.0,0.03724923]
[1744352013340,0.5782665,81207.0,81206.0,0.03724923]
[1744352014037,0.6821465,81207.0,81206.0,0.03724923]
[1744352015344,0.6821465,81207.0,81206.0,0.03725053]
[1744352015545,0.6502065,81207.0,81206.0,0.03725053]
[1744352015750,0.6502465,81207.0,81206.0,0.16047783]
[1744352015950,0.5463665,81207.0,81206.0,0.16047783]
[1744352016142,0.5463665,81207.0,81206.0,0.03725053]
[1744352016748,0.5463665,81207.0,81206.0,0.01798925]
[1744352019951,0.5149665,81207.0,81206.0,0.14121655]
[1744352020151,0.36084,81207.0,81206.0,0.14121655]
[1744352020447,0.4840658,81207.0,81206.0,0.01798925]
[1744352020652,0.4840258,81207.0,81206.0,0.08068925]
[1744352020949,0.4840658,81207.0,81206.0,0.08068925]
[1744352021146,0.4840658,81207.0,81206.0,0.20391655]
[1744352021347,0.36084,81207.0,81206.0,0.20391655]
[1744352021651,0.0004,81210.0,81209.0,0.1232227]
[1744352021841,0.0004,81210.0,81206.0,0.08068925]
[1744352021842,0.1232258,81207.0,81206.0,0.08068925]
[1744352022149,0.1232258,81207.0,81206.0,0.04838925]
[1744352022543,0.1232258,81207.0,81206.0,0.17161655]
[1744352022747,0.1232258,81207.0,81206.0,0.18919045]
[1744352022951,0.0004,81210.0,81209.0,0.1232227]
[1744352023252,0.00044,81210.0,81209.0,0.15899604]
[1744352023550,0.00044,81210.0,81209.0,0.14121195]
[1744352023748,0.1236624,81210.0,81209.0,0.01798925]
[1744352023943,0.1568624,81210.0,81209.0,0.01798925]
[1744352024142,0.1887624,81210.0,81209.0,0.01798925]
[1744352025349,0.1568624,81210.0,81209.0,0.01798925]
[1744352027857,0.1568624,81210.0,81209.0,0.03626954]
[1744352028154,0.1568624,81210.0,81209.0,0.01798925]
[1744352028559,0.8784624,81210.0,81209.0,0.01798925]
[1744352029056,0.8784624,81210.0,81209.0,5e-08]
[1744352029259,0.1232516,81190.0,81189.0,0.3238299]
[1744352029554,0.1232516,81190.0,81189.0,0.50971484]
[1744352029856,0.1232516,81190.0,81189.0,0.47801484]
[1744352030452,0.3608,81194.0,81193.0,0.123247]
[1744352030651,0.1848673,81196.0,81195.0,0.1232434]
[1744352030853,0.1848673,81196.0,81195.0,0.01833448]
[1744352031048,0.123244,81195.0,81194.0,0.0312]
[1744352031243,0.1232516,81190.0,81189.0,0.3233299]
[1744352031754,0.1232516,81190.0,81189.0,0.2921299]
[1744352032256,0.1546516,81190.0,81189.0,0.3233299]
[1744352032448,0.1546516,81190.0,81189.0,0.2504056]
[1744352033352,0.1546516,81190.0,81189.0,0.39211555]
[1744352033551,0.1232516,81190.0,81189.0,0.39211555]
[1744352033743,0.1232916,81190.0,81189.0,0.39211555]
[1744352033946,0.1232916,81190.0,81189.0,0.26886245]
[1744352034151,0.1232916,81190.0,81189.0,0.2504056]
[1744352034353,0.1232916,81190.0,81189.0,0.2192056]
[1744352034554,0.1564916,81190.0,81189.0,0.2192056]
[1744352035556,0.1564916,81190.0,81188.0,0.00018472]
[1744352035557,0.1232531,81189.0,81188.0,0.00018472]
[1744352035753,0.1546531,81189.0,81188.0,0.00018472]
[1744352036056,0.1232531,81189.0,81188.0,0.00018472]
[1744352036261,0.2271331,81189.0,81188.0,0.00018472]
[1744352036759,0.2576731,81189.0,81188.0,0.00018472]
[1744352038158,0.2271731,81189.0,81188.0,0.00018472]
[1744352038358,0.061628,81187.0,81180.0,0.2192056]
[1744352038561,0.1232789,81172.0,81171.0,0.2192056]
[1744352038856,0.4840789,81172.0,81171.0,0.2192056]
[1744352039057,0.123285,81168.0,81167.0,0.2921299]
[1744352039260,0.484085,81168.0,81167.0,0.2921299]
[1744352039573,0.496239,81168.0,81167.0,0.2921299]
[1744352040758,0.1232971,81160.0,81159.0,0.00018472]
[1744352040964,0.5880171,81160.0,81159.0,0.00018472]
[1744352041665,0.5880171,81160.0,81159.0,0.01778865]
[1744352042265,0.5880171,81160.0,81159.0,0.00018472]
[1744352042456,0.0616499,81159.0,81145.0,0.0316]
[1744352042662,0.4841032,81156.0,81146.0,0.031]
[1744352043159,0.1233169,81147.0,81146.0,0.031]
[1744352043365,0.4841169,81147.0,81146.0,0.04859094]
[1744352045571,0.4841169,81147.0,81146.0,0.031]
[1744352045969,0.5154169,81147.0,81146.0,0.031]
[1744352046171,0.4841169,81147.0,81146.0,0.031]
[1744352046865,0.4841169,81147.0,81146.0,0.04805093]
[1744352047767,0.4841569,81147.0,81146.0,0.04805093]
[1744352049671,0.4841169,81147.0,81146.0,0.04805093]
[1744352049875,0.4841569,81147.0,81146.0,0.04805093]
[1744352052763,0.4841169,81147.0,81146.0,0.04805093]
[1744352052967,0.4841569,81147.0,81146.0,0.04805093]
[1744352054068,0.4841169,81147.0,81146.0,0.04805093]
[1744352054380,0.4841569,81147.0,81146.0,0.04805093]
[1744352062574,0.4841569,81147.0,81146.0,0.08105093]
[1744352063180,0.4841169,81147.0,81146.0,0.08105093]
[1744352063370,0.4841569,81147.0,81146.0,0.08105093]
[1744352065668,0.5897569,81147.0,81146.0,0.08105093]
[1744352066669,0.59907009,81147.0,81146.0,0.08105093]
[1744352067864,0.95987009,81147.0,81146.0,0.04805093]
[1744352068067,0.1233275,81140.0,81139.0,0.00049298]
[1744352068369,0.4841275,81140.0,81139.0,0.01724259]